bitfinex-derivatives/quotes_BNBF0:USTF0_20250111
["timestamp","ask_amount","ask_price","bid_price","bid_amount"]
[1736568886968,1.08145292,692.2,691.01,0.28943141]
[1736568888072,0.28882534,692.46,691.01,0.28943141]
[1736568888073,1.08145292,692.21,691.01,0.28943141]
[1736568889067,1.08145292,692.24,691.01,0.28943141]
[1736568889768,1.08145292,692.27,691.01,0.28943141]
[1736568890768,1.08145292,692.28,691.01,0.28943141]
[1736568890970,1.37035336,692.28,691.01,0.28943141]
[1736568893271,0.28890044,692.28,691.01,0.28943141]
[1736568896171,0.26561444,692.27,691.01,0.28943141]
[1736568896573,0.28890044,692.28,691.01,0.28943141]
[1736568896767,0.26561444,692.27,691.01,0.28943141]
[1736568896973,1.08145292,692.17,691.01,0.28943141]
[1736568897768,1.08145292,692.15,691.01,0.28943141]
[1736568898572,1.08145292,692.16,691.01,0.28943141]
[1736568900370,0.28890044,692.28,691.01,0.28943141]
[1736568900371,1.08145292,692.14,691.01,0.28943141]
[1736568902372,1.08145292,692.1,691.01,0.28943141]
[1736568903385,1.08145292,692.09,691.01,0.28943141]
[1736568904176,1.08145292,692.04,691.01,0.28943141]
[1736568905278,1.08145292,692.0,691.01,0.28943141]
[1736568907580,1.08145292,691.99,691.01,0.28943141]
[1736568908481,1.08145292,691.98,691.01,0.28943141]
[1736568908875,1.08145292,691.98,690.47,2.84247871]
[1736568909078,1.08145292,691.98,690.48,0.28965357]
[1736568909480,1.08145292,692.13,690.48,0.28965357]
[1736568909774,0.28896723,692.12,690.48,0.28965357]
[1736568910682,1.08145292,692.09,690.48,0.28965357]
[1736568911077,0.28898393,692.08,690.48,0.28965357]
[1736568912382,1.37043685,692.08,690.48,0.28965357]
[1736568913682,1.08145292,692.14,689.57,1.29236723]
[1736568914882,1.51060243,692.15,689.54,3.24417109]
[1736568914883,2.59205535,692.15,689.59,1.29236723]
[1736568915381,0.26574638,692.14,689.59,1.29236723]
[1736568915885,0.26574638,692.14,689.63,1.29236723]
[1736568916887,0.26574638,692.14,689.67,1.29236723]
[1736568916888,1.08145292,692.12,689.67,1.29236723]
[1736568917085,0.26574638,692.11,689.67,1.29236723]
[1736568917281,1.08145292,692.12,689.67,1.29236723]
[1736568917486,0.26576029,692.11,689.67,1.29236723]
[1736568917987,0.26576029,692.11,689.66,1.29236723]
[1736568918188,0.26576029,692.1,689.66,1.29236723]
[1736568918488,0.26576029,692.09,689.66,1.29236723]
[1736568918681,1.08145292,692.13,689.66,1.29236723]
[1736568918881,0.26575716,692.12,689.66,1.29236723]
[1736568919084,0.26575716,692.12,689.65,1.29236723]
[1736568919285,0.26575716,692.11,689.65,1.29236723]
[1736568919482,0.26575716,692.1,689.65,1.29236723]
[1736568919684,0.26575716,692.09,689.65,1.29236723]
[1736568919885,0.26575716,692.08,689.65,1.29236723]
[1736568920085,0.26575438,692.07,689.65,1.29236723]
[1736568920290,0.26575438,692.06,689.65,1.29236723]
[1736568920491,1.08145292,692.02,689.96,1.29236723]
[1736568920690,0.26575438,692.01,689.96,1.29236723]
[1736568921191,1.08145292,691.99,689.94,1.29236723]
[1736568921391,0.26575438,691.98,689.94,1.29236723]
[1736568921986,0.26575438,691.98,689.96,1.29236723]
[1736568922188,0.26575438,691.97,689.96,1.29236723]
[1736568922389,0.26575438,691.96,689.96,1.29236723]
[1736568922585,1.08145292,692.01,689.96,1.29236723]
[1736568922887,1.08145292,692.01,689.72,2.84514041]
[1736568922888,1.08145292,691.99,690.01,1.29236723]
[1736568923088,0.26575372,691.98,690.01,1.29236723]
[1736568923787,0.26575372,691.98,690.02,1.29236723]
[1736568923994,0.26575372,691.97,690.02,1.29236723]
[1736568924293,0.26575372,691.96,690.02,1.29236723]
[1736568924487,0.26575372,691.95,690.02,1.29236723]
[1736568924686,0.26575372,691.94,690.02,1.29236723]
[1736568924890,0.26575372,691.93,690.04,1.29236723]
[1736568925091,0.26575372,691.92,690.04,1.29236723]
[1736568925290,0.26575372,691.91,690.04,1.29236723]
[1736568925489,0.26574464,691.9,690.04,1.29236723]
[1736568925692,0.26574464,691.89,690.04,1.29236723]
[1736568925888,1.08145292,692.02,690.07,1.29236723]
[1736568926092,0.26574536,692.01,690.07,1.29236723]
[1736568927894,0.26574536,692.01,690.1,1.29236723]
[1736568928095,0.26571463,692.0,690.1,1.29236723]
[1736568928394,0.26571463,691.99,690.1,1.29236723]
[1736568928589,0.26571463,691.98,690.1,1.29236723]
[1736568928789,0.26571463,691.97,690.1,1.29236723]
[1736568928995,1.08145292,692.08,690.11,1.29236723]
[1736568929296,0.26571428,692.07,690.11,1.29236723]
[1736568929694,0.26571428,692.07,690.12,1.29236723]
[1736568930389,1.3471672,692.07,690.12,1.29236723]
[1736568930590,0.26571428,692.06,690.12,1.29236723]
[1736568930891,0.26571746,692.05,690.12,1.29236723]
[1736568931195,0.26571746,692.04,690.12,1.29236723]
[1736568931396,0.26571746,692.03,690.14,1.29236723]
[1736568931696,1.08145292,692.06,690.14,1.29236723]
[1736568932894,1.08145292,692.17,690.13,1.29236723]
[1736568933094,0.26570071,692.16,690.13,1.29236723]
[1736568933493,0.26570071,692.16,690.16,1.29236723]
[1736568934197,1.34715363,692.16,690.18,1.29236723]
[1736568934397,0.26570071,692.15,690.18,1.29236723]
[1736568935201,1.08145292,692.12,690.17,1.29236723]
[1736568935397,0.26570071,692.11,690.17,1.29236723]
[1736568936299,0.26570235,692.1,690.19,1.29236723]
[1736568936598,1.08145292,692.13,690.19,1.29236723]
[1736568936599,0.26570136,692.09,690.19,1.29236723]
[1736568936897,1.08145292,692.13,690.19,1.29236723]
[1736568936898,0.26570136,692.08,690.19,1.29236723]
[1736568937099,0.26570136,692.07,690.22,1.29236723]
[1736568937396,0.26570144,692.06,690.22,1.29236723]
[1736568937590,1.08145292,692.12,690.22,1.29236723]
[1736568937796,0.26570034,692.11,690.22,1.29236723]
[1736568937996,1.08145292,692.09,690.26,1.29236723]
[1736568938193,0.26570034,692.08,690.26,1.29236723]
[1736568938593,1.08145292,692.06,690.26,1.29236723]
[1736568938998,0.26570771,692.05,690.26,1.29236723]
[1736568939601,0.26570771,692.05,690.16,3.24417109]
[1736568939602,1.08145292,691.96,690.21,1.29236723]
[1736568940802,0.89480183,692.23,690.18,3.24417109]
[1736568940803,1.08145292,691.95,690.23,1.29236723]
[1736568941905,1.08145292,691.91,690.34,1.29236723]
[1736568942901,1.08145292,691.85,690.37,1.29236723]
[1736568944307,1.08145292,691.81,690.43,1.29236723]
[1736568945006,1.08145292,691.81,690.44,1.29236723]
[1736568945206,1.08145292,691.81,690.46,0.28966196]
[1736568947113,1.08145292,691.87,690.5,1.29236723]
[1736568947707,1.08145292,691.87,690.51,0.28964098]
[1736568948310,1.08145292,691.85,690.51,0.28964098]
[1736568950612,1.08145292,692.12,690.51,0.28964098]
[1736568950613,1.08145292,691.86,690.51,0.28964098]
[1736568951510,1.08145292,691.85,690.51,0.28964098]
[1736568953310,1.08145292,691.82,690.51,0.28964098]
[1736568954712,1.08145292,691.81,690.51,0.28964098]
[1736568955509,1.08145292,691.79,690.51,0.28964098]
[1736568957716,0.89480183,692.23,690.51,0.28964098]
[1736568957717,1.08145292,691.78,690.51,0.28964098]
[1736568958712,1.08145292,691.77,690.51,0.28964098]
[1736568960016,1.08145292,691.75,690.51,0.28964098]
[1736568960719,1.08145292,691.73,690.51,0.28964098]
[1736568961520,1.08145292,691.78,690.54,1.29236723]
[1736568961718,1.08145292,691.78,690.55,0.28962421]
[1736568962320,1.08145292,691.8,690.55,0.28962421]
[1736568963521,1.08145292,691.8,690.55,1.58199144]
[1736568964523,1.08145292,691.91,690.55,0.28962421]
[1736568966025,1.08145292,691.9,690.55,0.28962421]
[1736568968326,0.89480183,692.23,690.55,0.28962421]
[1736568968327,1.08145292,691.85,690.55,0.28962421]
[1736568972029,1.08145292,691.84,690.55,0.28962421]
[1736568974328,1.08145292,691.74,690.55,0.28962421]
[1736568975732,1.08145292,691.75,690.55,0.28962421]
[1736568976527,1.08145292,691.94,690.55,0.28962421]
[1736568976528,1.08145292,691.79,690.55,0.28962421]
[1736568977834,1.08145292,692.18,690.55,0.28962421]
[1736568978431,1.08145292,692.21,690.55,0.28962421]
[1736568979329,1.08145292,692.24,690.55,0.28962421]
[1736568980737,1.08145292,692.23,690.55,0.28962421]
[1736568981639,1.08145292,692.25,690.55,0.28962421]
[1736568982437,1.08145292,692.3,690.55,0.28962421]
[1736568983742,1.08145292,692.27,690.55,0.28962421]
[1736568984643,1.08145292,692.29,690.55,0.28962421]
[1736568985540,1.08145292,692.31,690.55,0.28962421]
[1736568986444,1.08145292,692.33,690.55,0.28962421]
[1736568988849,1.08145292,692.29,690.55,0.28962421]
[1736568989643,1.08145292,692.32,690.55,0.28962421]
[1736568991750,1.08145292,692.27,690.55,0.28962421]
[1736568991949,0.26561131,692.21,690.55,0.28962421]
[1736568992449,0.26560959,692.2,690.55,0.28962421]
[1736568992651,1.08145292,692.27,690.55,0.28962421]
[1736568992854,0.2656091,692.21,690.55,0.28962421]
[1736568993050,1.34706202,692.21,690.55,0.28962421]
[1736568993249,0.2656091,692.2,690.55,0.28962421]
[1736568993450,1.08145292,692.21,690.55,0.28962421]
[1736568993951,1.3703784,692.22,690.55,0.28962421]
[1736568994656,0.28892548,692.22,690.55,0.28962421]
[1736568999356,1.3703784,692.22,690.55,0.28962421]
[1736569002862,0.28892548,692.22,690.55,0.28962421]
[1736569004165,1.3703784,692.22,690.55,0.28962421]
[1736569005064,1.08145292,692.17,690.58,1.29236723]
[1736569005258,1.08145292,692.17,690.6,0.28960324]
[1736569007467,1.08145292,692.21,690.69,1.29236723]
[1736569007658,1.08145292,692.21,690.71,0.28955712]
[1736569008067,1.08145292,692.19,690.71,1.58192435]
[1736569009061,1.08145292,692.18,690.71,0.28955712]
[1736569009768,1.08145292,692.17,690.74,1.29236723]
[1736569011067,1.08145292,692.13,690.77,1.29236723]
[1736569011271,1.08145292,692.13,690.79,0.28952358]
[1736569011870,0.28892548,692.22,690.79,0.28952358]
[1736569011871,1.08145292,692.08,690.81,1.29236723]
[1736569012172,1.08145292,692.08,690.83,0.28950682]
[1736569012968,1.08145292,692.08,690.84,1.29236723]
[1736569013167,1.08145292,692.08,690.85,0.28949844]
[1736569014971,1.08145292,692.03,690.85,0.28949844]
[1736569016270,1.08145292,692.07,690.85,0.28949844]
[1736569017172,1.08145292,692.06,690.85,0.28949844]
[1736569018970,0.28892548,692.22,690.85,0.28949844]
[1736569018971,1.08145292,692.08,690.85,0.28949844]
[1736569020074,0.28892548,692.22,690.85,0.28949844]
[1736569020075,1.08145292,692.09,690.85,0.28949844]
[1736569021878,1.08145292,692.13,690.85,0.28949844]
[1736569022582,1.08145292,692.14,690.85,0.28949844]
[1736569023573,1.08145292,692.11,690.85,0.28949844]
[1736569024474,1.08145292,692.17,690.85,0.28949844]
[1736569025583,1.08145292,692.19,690.85,0.28949844]
[1736569026582,1.08145292,692.21,690.85,0.28949844]
[1736569027477,1.3703784,692.22,690.85,0.28949844]
[1736569028784,0.28892548,692.22,690.85,0.28949844]
[1736569030482,1.08145292,692.33,690.85,0.28949844]
[1736569031083,1.08145292,692.41,690.85,0.28949844]
[1736569032787,1.08145292,692.45,690.85,0.28949844]
[1736569033784,1.08145292,692.46,690.85,0.28949844]
[1736569034889,1.08145292,692.49,690.85,0.28949844]
[1736569035384,1.08145292,692.51,690.85,0.28949844]
[1736569036483,1.08145292,692.58,690.85,0.28949844]
[1736569036688,0.26548187,692.57,690.85,0.28949844]
[1736569036887,0.26548165,692.56,690.85,0.28949844]
[1736569037188,1.08145292,692.54,690.85,0.28949844]
[1736569038291,1.08145292,692.55,690.85,0.28949844]
[1736569040684,0.26548576,692.54,690.85,0.28949844]
[1736569040887,1.08145292,692.55,690.85,0.28949844]
[1736569041083,1.08145292,692.56,690.85,0.28949844]
[1736569041285,0.26548111,692.55,690.85,0.28949844]
[1736569041489,1.08145292,692.56,690.85,0.28949844]
[1736569042389,0.28869193,692.78,690.85,0.28949844]
[1736569042390,0.26546993,692.55,690.85,0.28949844]
[1736569042590,0.26546993,692.54,690.85,0.28949844]
[1736569042785,1.08145292,692.59,690.85,0.28949844]
[1736569042991,0.26546968,692.58,690.85,0.28949844]
[1736569043385,1.08145292,692.55,690.85,1.58186567]
[1736569043592,0.26546968,692.54,690.85,1.58186567]
[1736569044091,0.26547663,692.53,690.85,1.58186567]
[1736569044391,1.08145292,692.55,690.85,1.58186567]
[1736569044590,0.2654752,692.54,690.85,1.58186567]
[1736569044989,1.08145292,692.55,690.85,1.58186567]
[1736569045284,0.26547078,692.54,690.85,1.58186567]
[1736569045484,0.26547078,692.54,690.85,0.28949844]
[1736569045692,1.08145292,692.55,690.85,0.28949844]
[1736569045893,0.26547337,692.54,690.85,0.28949844]
[1736569046290,1.34692629,692.54,690.85,0.28949844]
[1736569046593,1.08145292,692.54,690.85,0.28949844]
[1736569047288,0.26547368,692.53,690.85,0.28949844]
[1736569048185,0.26547368,692.53,690.85,3.13463885]
[1736569048388,0.26547368,692.53,690.85,6.38794997]
[1736569048588,0.26547368,692.53,690.86,3.25331112]
[1736569048889,0.26547368,692.53,690.88,0.28948587]
[1736569049390,1.08145292,692.54,690.88,0.28948587]
[1736569049591,1.08145292,692.53,690.88,0.28948587]
[1736569051192,1.08145292,692.52,690.88,3.54279699]
[1736569052193,1.08145292,692.6,690.88,3.54279699]
[1736569052996,1.08145292,692.6,690.88,0.28948587]
[1736569053196,1.08145292,692.69,690.93,1.29236723]
[1736569053395,1.08145292,692.69,690.95,0.28945654]
[1736569053897,1.08145292,692.68,690.95,0.28945654]
[1736569055898,1.08145292,692.71,690.95,1.58182377]
[1736569056998,1.08145292,692.74,690.95,0.28945654]
[1736569057699,1.08145292,692.72,690.95,0.28945654]
[1736569058795,1.08145292,692.73,690.95,0.28945654]
[1736569060100,0.28870027,692.76,690.95,0.28945654]
[1736569060101,1.08145292,692.66,690.95,0.28945654]
[1736569061001,1.08145292,692.65,690.95,0.28945654]
[1736569063303,1.08145292,692.66,690.95,0.28945654]
[1736569064200,1.08145292,692.68,690.95,0.28945654]
[1736569065803,1.08145292,692.67,690.95,0.28945654]
[1736569066904,1.08145292,692.66,690.95,0.28945654]
[1736569067998,1.08145292,692.61,690.95,0.28945654]
[1736569069004,0.28870027,692.76,690.95,0.28945654]
[1736569069005,1.08145292,692.59,690.95,0.28945654]
[1736569070401,1.08145292,692.6,690.95,0.28945654]
[1736569071002,1.08145292,692.54,690.95,0.28945654]
[1736569071900,1.08145292,692.52,690.95,0.28945654]
[1736569074709,1.08145292,692.62,691.05,1.29236723]
[1736569075004,1.08145292,692.62,691.07,0.28940628]
[1736569075806,0.28870027,692.76,691.07,0.28940628]
[1736569075807,1.08145292,692.61,691.07,0.28940628]
[1736569077008,1.08145292,692.63,691.07,0.28940628]
[1736569078810,1.08145292,692.6,691.07,0.28940628]
[1736569079704,0.28870027,692.76,691.07,1.58177351]
[1736569079705,1.08145292,692.59,691.07,1.58177351]
[1736569082012,1.08145292,692.52,691.07,0.28940628]
[1736569083009,1.08145292,692.73,691.07,0.28940628]
[1736569083010,1.08145292,692.53,691.07,0.28940628]
[1736569084012,1.08145292,692.54,691.07,0.28940628]
[1736569085212,1.08145292,692.53,691.07,0.28940628]
[1736569085913,1.08145292,692.51,691.07,0.28940628]
[1736569087015,1.08145292,692.48,691.1,1.29236723]
[1736569087214,1.08145292,692.48,691.12,0.28938534]
[1736569088015,1.08145292,692.55,691.12,0.28938534]
[1736569088810,1.08145292,692.56,691.12,0.28938534]
[1736569090117,1.08145292,692.54,691.12,0.28938534]
[1736569092017,1.08145292,692.55,691.12,0.28938534]
[1736569092938,1.08145292,692.58,691.12,0.28938534]
[1736569093617,1.08145292,692.57,691.12,0.28938534]
[1736569094519,1.08145292,692.61,691.12,0.28938534]
[1736569096526,1.08145292,692.54,691.12,0.28938534]
[1736569097626,1.08145292,692.51,691.12,0.28938534]
[1736569098528,1.08145292,692.5,691.12,0.28938534]
[1736569099428,1.08145292,692.49,691.12,0.28938534]
[1736569100528,0.2887086,692.74,691.23,1.29236723]
[1736569100529,1.08145292,692.47,691.23,1.29236723]
[1736569100720,1.08145292,692.47,691.24,0.2893351]
[1736569101629,1.08145292,692.46,691.24,0.2893351]
[1736569103727,0.2887086,692.74,691.3,1.29236723]
[1736569103728,1.08145292,692.54,691.3,1.29236723]
[1736569104831,1.08145292,692.54,691.31,0.28930581]
[1736569107034,1.08145292,692.61,691.31,0.28930581]
[1736569107829,1.08145292,692.62,691.31,0.28930581]
[1736569109530,1.08145292,692.63,691.31,0.28930581]
[1736569110536,1.08145292,692.62,691.31,0.28930581]
[1736569111637,1.08145292,692.56,691.31,0.28930581]
[1736569116739,0.2887086,692.74,691.31,0.28930581]
[1736569116740,1.08145292,692.51,691.31,0.28930581]
[1736569119444,1.08145292,692.5,691.31,0.28930581]
[1736569120442,1.08145292,692.53,691.31,0.28930581]
[1736569122453,1.08145292,692.54,691.31,0.28930581]
[1736569124953,1.08145292,692.51,691.31,0.28930581]
[1736569125452,1.08145292,692.5,691.31,0.28930581]
[1736569127255,1.08145292,692.54,691.31,0.28930581]
[1736569128058,1.08145292,692.53,691.31,1.58167304]
[1736569129160,1.08145292,692.52,691.33,1.29236723]
[1736569129358,1.08145292,692.52,691.34,0.28929325]
[1736569130060,1.08145292,692.51,691.34,0.28929325]
[1736569131860,1.08145292,692.51,691.34,1.58166048]
[1736569133058,1.08145292,692.51,691.35,1.29236723]
[1736569133253,1.08145292,692.51,691.36,0.28928488]
[1736569133959,1.08145292,692.47,691.36,0.28928488]
[1736569134659,1.08145292,692.46,691.36,0.28928488]
[1736569136663,1.08145292,692.47,691.36,0.28928488]
[1736569142463,1.08145292,692.48,691.36,0.28928488]
[1736569144965,1.08145292,692.47,691.36,0.28928488]
[1736569147067,1.08145292,692.48,691.36,0.28928488]
[1736569149269,1.08145292,692.57,691.41,1.29236723]
[1736569149567,1.08145292,692.57,691.42,0.28925978]
[1736569151167,1.08145292,692.58,691.42,0.28925978]
[1736569152969,1.08145292,692.56,691.42,0.28925978]
[1736569153868,1.08145292,692.57,691.42,0.28925978]
[1736569154671,1.08145292,692.58,691.42,0.28925978]
[1736569158075,0.2887086,692.74,691.42,0.28925978]
[1736569158076,1.08145292,692.52,691.42,0.28925978]
[1736569160272,1.08145292,692.53,691.42,0.28925978]
[1736569160975,1.08145292,692.63,691.42,0.28925978]
[1736569162071,0.2887086,692.74,691.42,0.28925978]
[1736569162072,1.08145292,692.64,691.42,0.28925978]
[1736569163677,1.08145292,692.68,691.42,0.28925978]
[1736569164577,0.2887086,692.74,691.42,0.28925978]
[1736569164578,1.08145292,692.73,691.42,0.28925978]
[1736569166378,0.2887086,692.74,691.42,0.28925978]
[1736569169079,1.37016152,692.74,691.42,0.28925978]
[1736569172183,1.08145292,692.67,691.42,0.28925978]
[1736569172883,1.08145292,692.69,691.42,0.28925978]
[1736569173987,1.08145292,692.67,691.42,0.28925978]
[1736569174785,1.08145292,692.66,691.42,0.28925978]
[1736569176191,0.2887086,692.74,691.42,0.28925978]
[1736569176192,1.08145292,692.65,691.42,0.28925978]
[1736569177191,1.08145292,692.61,691.42,0.28925978]
[1736569178189,1.08145292,692.62,691.42,0.28925978]
[1736569179187,0.2887086,692.74,691.42,0.28925978]
[1736569179188,1.08145292,692.67,691.42,0.28925978]
[1736569179992,1.08145292,692.65,691.42,0.28925978]
[1736569181493,1.08145292,692.64,691.42,0.28925978]
[1736569182887,1.08145292,692.56,691.42,0.28925978]
[1736569184895,1.08145292,692.54,691.42,0.28925978]
[1736569185597,1.08145292,692.57,691.42,0.28925978]
[1736569186393,1.08145292,692.52,691.42,0.28925978]
[1736569187402,1.08145292,692.53,691.42,0.28925978]
[1736569188295,1.08145292,692.5,691.42,0.28925978]
[1736569190202,1.08145292,692.49,691.42,0.28925978]
[1736569192399,1.08145292,692.68,691.42,0.28925978]
[1736569192400,1.08145292,692.5,691.42,0.28925978]
[1736569193507,1.08145292,692.55,691.42,0.28925978]
[1736569195504,1.08145292,692.54,691.42,0.28925978]
[1736569196307,1.08145292,692.55,691.42,0.28925978]
[1736569198107,1.0684057,692.55,691.42,0.28925978]
[1736569200509,1.08145292,692.69,691.42,0.28925978]
[1736569201710,0.2887086,692.74,691.42,0.28925978]
[1736569225933,1.37016152,692.74,691.42,0.28925978]
[1736569226834,0.2887086,692.74,691.42,0.28925978]
[1736569229040,1.08145292,692.72,691.42,0.28925978]
[1736569229942,0.2887086,692.74,691.42,0.28925978]
[1736569255051,0.2887086,692.74,691.45,1.29236723]
[1736569255251,0.2887086,692.74,691.46,0.28924305]
[1736569268762,0.2887086,692.74,691.46,1.58161028]
[1736569269866,0.2887086,692.74,691.48,1.29236723]
[1736569270066,0.2887086,692.74,691.49,0.2892305]
[1736569275168,1.08145292,693.15,691.49,0.2892305]
[1736569275369,0.55385021,693.14,691.49,0.2892305]
[1736569275569,1.50782074,693.28,691.49,0.2892305]
[1736569275570,0.55385438,693.13,691.49,0.2892305]
[1736569275769,0.5538533,693.12,691.49,0.2892305]
[1736569275970,0.55385746,693.11,691.49,0.2892305]
[1736569276269,0.55386162,693.1,691.49,0.2892305]
[1736569276470,0.26530298,693.09,691.49,0.2892305]
[1736569278281,0.28855864,693.1,691.49,0.2892305]
[1736569278468,0.2652961,693.09,691.49,0.2892305]
[1736569278972,0.28855864,693.1,691.49,0.2892305]
[1736569279872,0.26529609,693.09,691.49,0.2892305]
[1736569280071,0.28855864,693.1,691.49,0.2892305]
[1736569280273,0.26529538,693.09,691.49,0.2892305]
[1736569282768,0.28855864,693.1,691.49,0.2892305]
[1736569289276,1.08145292,693.09,691.49,0.2892305]
[1736569289469,0.26530031,693.08,691.49,0.2892305]
[1736569290574,1.08145292,693.04,691.49,0.2892305]
[1736569291478,1.08145292,693.02,691.49,0.2892305]
[1736569292281,1.08145292,693.05,691.49,0.2892305]
[1736569292676,0.26529829,693.04,691.49,0.2892305]
[1736569293280,1.08145292,692.96,691.56,1.29236723]
[1736569293482,1.08145292,692.96,691.57,0.28919704]
[1736569294078,1.08145292,692.96,691.57,1.58156427]
[1736569295082,1.08145292,692.99,691.57,0.28919704]
[1736569295975,1.08145292,692.98,691.57,0.28919704]
[1736569297275,1.08145292,692.97,691.57,0.28919704]
[1736569298181,1.08145292,693.02,691.57,0.28919704]
[1736569299081,1.08145292,693.01,691.57,0.28919704]
[1736569300883,1.08145292,693.07,691.57,0.28919704]
[1736569301783,1.08145292,693.05,691.57,0.28919704]
[1736569304686,0.89582531,693.09,691.57,0.28919704]
[1736569304687,1.08145292,693.03,691.57,0.28919704]
[1736569307283,1.08145292,693.05,691.57,0.28919704]
[1736569310591,1.08145292,693.05,691.58,1.29236723]
[1736569310791,1.08145292,693.05,691.59,0.28918868]
[1736569311488,1.08145292,693.07,691.59,1.58155591]
[1736569312294,0.28855864,693.1,691.59,1.58155591]
[1736569312295,1.37001156,693.1,691.59,1.58155591]
[1736569312488,1.37001156,693.1,691.61,1.29236723]
[1736569312690,1.37001156,693.1,691.62,0.28917613]
[1736569313292,0.28855864,693.1,691.62,0.28917613]
[1736569315494,1.08145292,693.07,691.62,0.28917613]
[1736569316490,1.08145292,693.06,691.62,0.28917613]
[1736569317297,1.08145292,693.07,691.62,0.28917613]
[1736569317494,1.08145292,693.07,691.62,3.14134577]
[1736569317698,1.08145292,693.07,691.62,6.38574889]
[1736569317903,1.08145292,693.07,691.63,3.24440312]
[1736569318105,1.08145292,693.07,691.64,0.28916777]
[1736569318305,1.08089221,692.9,691.64,0.28916777]
[1736569319301,1.08089221,692.91,691.64,0.28916777]
[1736569320300,1.08089221,692.9,691.64,0.28916777]
[1736569321101,1.08089221,692.91,691.64,0.28916777]
[1736569322207,1.08089221,692.92,691.64,0.28916777]
[1736569324306,1.08089221,692.92,691.64,3.53357089]
[1736569325704,1.08089221,692.92,691.64,0.28916777]
[1736569326109,1.08089221,692.9,691.64,0.28916777]
[1736569326908,1.08089221,692.91,691.64,0.28916777]
[1736569327307,1.08089221,692.91,691.64,3.53357089]
[1736569328906,1.08089221,692.97,691.69,1.29236723]
[1736569329105,1.08089221,692.97,691.7,0.28914269]
[1736569330611,1.08089221,692.98,691.7,1.58150992]
[1736569331708,1.08089221,693.01,691.7,0.28914269]
[1736569332608,1.08089221,693.0,691.7,0.28914269]
[1736569334115,1.08089221,693.02,691.7,0.28914269]
[1736569335013,1.08089221,693.05,691.7,0.28914269]
[1736569336014,1.08089221,693.06,691.7,0.28914269]
[1736569336606,0.28855864,693.1,691.7,0.28914269]
[1736569336607,1.08089221,693.0,691.7,0.28914269]
[1736569338414,1.08089221,692.98,691.7,0.28914269]
[1736569339207,1.08089221,692.97,691.7,0.28914269]
[1736569341516,1.08089221,692.96,691.7,0.28914269]
[1736569342621,1.08089221,692.95,691.7,0.28914269]
[1736569343613,0.28855864,693.1,691.7,0.28914269]
[1736569343614,1.08089221,693.01,691.7,0.28914269]
[1736569344615,1.08089221,692.95,691.7,0.28914269]
[1736569345918,1.08089221,693.0,691.7,0.28914269]
[1736569346719,0.28855864,693.1,691.7,0.28914269]
[1736569346720,1.08089221,692.99,691.7,0.28914269]
[1736569347820,1.08089221,693.0,691.7,0.28914269]
[1736569349623,1.08089221,692.99,691.7,0.28914269]
[1736569351526,1.08089221,692.95,691.7,0.28914269]
[1736569352427,1.08089221,692.94,691.7,0.28914269]
[1736569353130,1.08089221,693.0,691.7,0.28914269]
[1736569355531,1.08089221,692.99,691.7,0.28914269]
[1736569356430,1.08089221,692.97,691.7,0.28914269]
[1736569358832,1.08089221,693.01,691.7,0.28914269]
[1736569361633,1.08089221,693.02,691.7,0.28914269]
[1736569362637,1.08089221,692.99,691.7,0.28914269]
[1736569363436,1.08089221,692.94,691.7,0.28914269]
[1736569365338,1.08089221,692.93,691.7,0.28914269]
[1736569366038,0.28855864,693.1,691.7,0.28914269]
[1736569366039,1.08089221,692.94,691.7,0.28914269]
[1736569366938,1.08089221,692.87,691.7,1.58150992]
[1736569369140,1.08089221,692.86,691.72,1.29236723]
[1736569369440,1.08089221,692.86,691.73,0.28913015]
[1736569374142,0.28855864,693.1,691.73,0.28913015]
[1736569374143,1.08089221,692.9,691.73,0.28913015]
[1736569375240,0.28855864,693.1,691.73,0.28913015]
[1736569375241,1.08089221,692.93,691.73,0.28913015]
[1736569377245,1.08089221,692.91,691.73,0.28913015]
[1736569378140,1.08089221,692.93,691.73,0.28913015]
[1736569379547,1.08089221,692.92,691.73,0.28913015]
[1736569380545,1.08089221,692.87,691.73,0.28913015]
[1736569381744,1.08089221,693.02,691.73,0.28913015]
[1736569382440,1.08089221,693.04,691.73,0.28913015]
[1736569384947,1.08089221,693.05,691.73,0.28913015]
[1736569386148,1.08089221,693.06,691.73,0.28913015]
[1736569388547,0.28855864,693.1,691.73,0.28913015]
[1736569388548,1.08089221,693.07,691.73,0.28913015]
[1736569389445,1.08089221,693.03,691.73,0.28913015]
[1736569391650,1.08089221,692.95,691.73,0.28913015]
[1736569393549,1.08089221,692.79,691.73,0.28913015]
[1736569395052,0.89467988,693.09,691.73,0.28913015]
[1736569395053,1.08089221,692.8,691.73,0.28913015]
[1736569396252,1.08089221,692.81,691.73,0.28913015]
[1736569397255,1.08089221,692.86,691.73,0.28913015]
[1736569399054,1.08089221,692.87,691.73,0.28913015]
[1736569400856,1.08089221,692.86,691.73,0.28913015]
[1736569402453,1.08089221,692.85,691.73,0.28913015]
[1736569404362,1.08089221,692.81,691.73,0.28913015]
[1736569405257,1.08145292,693.07,691.73,0.28913015]
[1736569405258,1.08089221,692.8,691.73,0.28913015]
[1736569406164,1.08089221,692.79,691.73,0.28913015]
[1736569407161,1.08089221,692.78,691.73,0.28913015]
[1736569408267,0.89467988,693.09,691.73,0.28913015]